fUSD/lending_fUSD_20240301
["ID","MTS","AMOUNT","RATE_DAILY","PERIOD"]
[315969714,1709307046992,-500.0,0.00022027,2]
[315969715,1709307047002,-500.0,0.00022027,2]
[315969716,1709307047011,-500.0,0.00022027,2]
[315969717,1709307047020,-611.43,0.00022027,2]
[315969718,1709307047030,-500.0,0.00022027,2]
[315969719,1709307047039,-500.0,0.00022027,2]
[315969720,1709307047048,-500.0,0.00022027,2]
[315969721,1709307047057,-206.89,0.00022027,2]
[315969722,1709307047067,-500.0,0.00022027,2]
[315969723,1709307047076,-552.7,0.00022027,2]
[315969724,1709307047086,-698.82,0.00022027,2]
[315969725,1709307047096,-500.0,0.00022027,2]
[315969726,1709307047106,-500.0,0.00022027,2]
[315969727,1709307047115,-573.69,0.00022027,2]
[315969728,1709307047125,-583.21,0.00022027,2]
[315969729,1709307047134,-1028.87,0.00022027,2]
[315969730,1709307047143,-500.0,0.00022027,2]
[315969731,1709307047152,-500.0,0.00022027,2]
[315969732,1709307047162,-500.0,0.00022027,2]
[315969733,1709307047170,-500.0,0.00022027,2]
[315969734,1709307047180,-500.0,0.00022027,2]
[315969735,1709307047189,-787.69,0.00022027,2]
[315969736,1709307047198,-918.67,0.00022027,2]
[315969737,1709307047208,-500.0,0.00022027,2]
[315969738,1709307047217,-691.1,0.00022027,2]
[315969739,1709307047226,-3244.85,0.00022027,2]
[315969740,1709307047236,-536.66,0.00022027,2]
[315969741,1709307047245,-1967.56,0.00022027,2]
[315969742,1709307047255,-670.06,0.00022027,2]
[315969743,1709307047264,-500.0,0.00022027,2]
[315969744,1709307047273,-505.35,0.00022027,2]
[315969745,1709307047282,-500.0,0.00022027,2]
[315969746,1709307047292,-500.0,0.00022027,2]
[315969747,1709307047301,-509.48,0.00022027,2]
[315969748,1709307047311,-685.16,0.00022027,2]
[315969749,1709307047321,-649.97,0.00022027,2]
[315969750,1709307047330,-500.0,0.00022027,2]
[315969751,1709307047339,-982.63,0.00022027,2]
[315969752,1709307047348,-3216.78,0.00022027,2]
[315969753,1709307047357,-500.0,0.00022027,2]
[315969754,1709307047366,-500.0,0.00022027,2]
[315969755,1709307047375,-500.0,0.00022027,2]
[315969756,1709307047385,-849.21,0.00022027,2]
[315969757,1709307047394,-500.0,0.00022027,2]
[315969758,1709307047403,-972.94,0.00022027,2]
[315969759,1709307047413,-500.0,0.00022027,2]
[315969760,1709307047422,-500.0,0.00022027,2]
[315969761,1709307047431,-3340.41,0.00022027,2]
[315969762,1709307047441,-500.0,0.00022027,2]
[315969763,1709307047450,-3128.28,0.00022027,2]
[315969764,1709307047458,-500.0,0.00022027,2]
[315969765,1709307047467,-500.0,0.00022027,2]
[315969766,1709307047477,-500.0,0.00022027,2]
[315969767,1709307047488,-1319.78,0.00022027,2]
[315969768,1709307047497,-3858.03,0.00022027,2]
[315969769,1709307047507,-500.0,0.00022027,2]
[315969770,1709307047516,-500.0,0.00022027,2]
[315969771,1709307047525,-949.85,0.00022027,2]
[315969772,1709307047535,-500.0,0.00022027,2]
[315969773,1709307047544,-500.0,0.00022027,2]
[315969774,1709307047553,-525.34,0.00022027,2]
[315969775,1709307047563,-500.0,0.00022027,2]
[315969776,1709307047572,-500.0,0.00022027,2]
[315969777,1709307047581,-763.27,0.00022027,2]
[315969778,1709307047590,-4141.17,0.00022027,2]
[315969779,1709307047600,-2899.72,0.00022027,2]
[315969780,1709307047609,-936.13,0.00022027,2]
[315969781,1709307047619,-1154.5,0.00022027,2]
[315969782,1709307047629,-676.85,0.00022027,2]
[315969783,1709307047639,-500.0,0.00022027,2]
[315969784,1709307047649,-500.0,0.00022027,2]
[315969785,1709307047659,-988.63,0.00022027,2]
[315969786,1709307047668,-500.0,0.00022027,2]
[315969787,1709307047679,-500.0,0.00022027,2]
[315969788,1709307047693,-2096.13,0.00022027,2]
[315969789,1709307047703,-788.2,0.00022027,2]
[315969790,1709307047713,-500.0,0.00022027,2]
[315969791,1709307047723,-2568.42,0.00022027,2]
[315969792,1709307047738,-500.0,0.00022027,2]
[315969793,1709307047749,-500.0,0.00022027,2]
[315969794,1709307047759,-3085.65,0.00022027,2]
[315969795,1709307047770,-784.04,0.00022027,2]
[315969796,1709307047782,-974.28,0.00022027,2]
[315969797,1709307047792,-12265.38,0.00022027,2]
[315969798,1709307047803,-157.51,0.00022033,2]
[315969799,1709307047813,-200.39,0.00022033,2]
[315969800,1709307047824,-281.8122,0.00022036,2]
[315969801,1709307047837,-26267.8136,0.00022036,2]
[315969802,1709307047848,-66489.3641,0.00022036,2]
[315969803,1709307047858,-893.81,0.00022055,2]
[315969804,1709307047867,-407.37,0.00022055,2]
[315969805,1709307047879,-500.0,0.00022109,2]
[315969806,1709307047888,-500.0,0.00022109,2]
[315969807,1709307047899,-500.0,0.00022109,2]
[315969808,1709307047908,-302.82,0.00022109,2]
[315969809,1709307047918,-500.0,0.00022109,2]
[315969810,1709307047928,-217.07342702,0.00022109,2]
[315969811,1709307047937,-500.0,0.00022109,2]
[315969812,1709307047946,-359.74733044,0.00022109,2]
[315969813,1709307047955,-500.0,0.00022109,2]
[315969814,1709307047965,-523.86721179,0.00022109,2]
[315969815,1709307047974,-500.0,0.00022109,2]
[315969816,1709307047986,-500.0,0.00022109,2]
[315969817,1709307047995,-500.0,0.00022109,2]
[315969818,1709307048004,-500.0,0.00022109,2]
[315969819,1709307048013,-500.0,0.00022109,2]
[315969820,1709307048022,-433.99491563,0.00022109,2]
[315969821,1709307048031,-500.0,0.00022109,2]
[315969822,1709307048040,-348.31637708,0.00022109,2]
[315969823,1709307048050,-500.0,0.00022109,2]
[315969824,1709307048059,-500.0,0.00022109,2]
[315969825,1709307048068,-500.0,0.00022109,2]
[315969826,1709307048077,-500.0,0.00022109,2]
[315969827,1709307048086,-500.0,0.00022109,2]
[315969828,1709307048095,-500.0,0.00022109,2]
[315969829,1709307048104,-500.0,0.00022109,2]
[315969830,1709307048113,-500.0,0.00022109,2]
[315969831,1709307048122,-500.0,0.00022109,2]
[315969832,1709307048131,-168.73250655,0.00022109,2]
[315969833,1709307048140,-500.0,0.00022109,2]
[315969834,1709307048149,-519.18,0.00022109,2]
[315969835,1709307048158,-500.0,0.00022109,2]
[315969836,1709307048167,-500.0,0.00022109,2]
[315969837,1709307048176,-500.0,0.00022109,2]
[315969838,1709307048185,-500.0,0.00022109,2]
[315969839,1709307048194,-500.0,0.00022109,2]
[315969840,1709307048204,-500.0,0.00022109,2]
[315969841,1709307048213,-500.0,0.00022109,2]
[315969842,1709307048222,-500.0,0.00022109,2]
[315969843,1709307048233,-500.0,0.00022109,2]
[315969844,1709307048242,-256.08260687,0.00022109,2]
[315969845,1709307048251,-500.0,0.00022109,2]
[315969846,1709307048260,-500.0,0.00022109,2]
[315969847,1709307048270,-500.0,0.00022109,2]
[315969848,1709307048279,-500.0,0.00022109,2]
[315969849,1709307048288,-500.0,0.00022109,2]
[315969850,1709307048298,-500.0,0.00022109,2]
[315969851,1709307048307,-500.0,0.00022109,2]
[315969852,1709307048316,-275.39039011,0.00022109,2]
[315969853,1709307048325,-500.0,0.00022109,2]
[315969854,1709307048335,-500.0,0.00022109,2]
[315969855,1709307048344,-500.0,0.00022109,2]
[315969856,1709307048353,-500.0,0.00022109,2]
[315969857,1709307048363,-500.0,0.00022109,2]
[315969858,1709307048372,-500.0,0.00022109,2]
[315969859,1709307048381,-500.0,0.00022109,2]
[315969860,1709307048390,-500.0,0.00022109,2]
[315969861,1709307048399,-500.0,0.00022109,2]
[315969862,1709307048408,-528.94,0.00022109,2]
[315969863,1709307048417,-500.0,0.00022109,2]
[315969864,1709307048427,-767.41,0.00022109,2]
[315969865,1709307048436,-500.0,0.00022109,2]
[315969866,1709307048445,-643.33,0.00022109,2]
[315969867,1709307048455,-500.0,0.00022109,2]
[315969868,1709307048464,-500.0,0.00022109,2]
[315969869,1709307048474,-779.62,0.00022109,2]
[315969870,1709307048484,-699.42,0.00022109,2]
[315969871,1709307048493,-568.64759599,0.00022109,2]
[315969872,1709307048502,-500.0,0.00022109,2]
[315969873,1709307048512,-500.0,0.00022109,2]
[315969874,1709307048522,-1154.34,0.00022109,2]
[315969875,1709307048531,-518.73,0.00022109,2]
[315969876,1709307048541,-1517.01,0.00022109,2]
[315969877,1709307048550,-500.0,0.00022109,2]
[315969878,1709307048559,-500.0,0.00022109,2]
[315969879,1709307048569,-1293.16,0.00022109,2]
[315969880,1709307048578,-518.79,0.00022109,2]
[315969881,1709307048587,-500.0,0.00022109,2]
[315969882,1709307048597,-156.4,0.00022109,2]
[315969883,1709307048606,-776.93,0.00022109,2]
[315969884,1709307048616,-1111.31,0.00022109,2]
[315969885,1709307048626,-500.0,0.00022109,2]
[315969886,1709307048636,-500.0,0.00022109,2]
[315969887,1709307048645,-512.52,0.00022109,2]
[315969888,1709307048654,-500.0,0.00022109,2]
[315969889,1709307048663,-500.0,0.00022109,2]
[315969890,1709307048673,-566.57,0.00022109,2]
[315969891,1709307048682,-500.0,0.00022109,2]
[315969892,1709307048691,-500.0,0.00022109,2]
[315969893,1709307048704,-561.8,0.00022109,2]
[315969894,1709307048713,-500.0,0.00022109,2]
[315969895,1709307048723,-500.0,0.00022109,2]
[315969896,1709307048733,-506.98,0.00022109,2]
[315969897,1709307048743,-500.0,0.00022109,2]
[315969898,1709307048752,-729.73,0.00022109,2]
[315969899,1709307048762,-1477.08,0.00022109,2]
[315969900,1709307048771,-500.0,0.00022135,2]
[315969901,1709307048782,-500.0,0.00022136,2]
[315969902,1709307048791,-500.0,0.00022136,2]
[315969903,1709307048801,-500.0,0.00022136,2]
[315969904,1709307048811,-500.0,0.00022136,2]
[315969905,1709307048820,-500.0,0.00022136,2]
[315969906,1709307048829,-500.0,0.00022136,2]
[315969907,1709307048839,-500.0,0.00022136,2]
[315969908,1709307048848,-500.0,0.00022136,2]
[315969909,1709307048858,-500.0,0.00022136,2]
[315969910,1709307048867,-500.0,0.00022136,2]
[315969911,1709307048877,-500.0,0.00022136,2]
[315969912,1709307048886,-218.09584621,0.00022136,2]
[315969913,1709307048895,-500.0,0.00022136,2]
[315969914,1709307048904,-500.0,0.00022136,2]
[315969915,1709307048913,-500.0,0.00022136,2]
[315969916,1709307048923,-500.0,0.00022136,2]
[315969917,1709307048932,-500.0,0.00022136,2]
[315969918,1709307048941,-500.0,0.00022136,2]
[315969919,1709307048951,-500.0,0.00022136,2]
[315969920,1709307048960,-500.0,0.00022136,2]
[315969921,1709307048969,-500.0,0.00022136,2]
[315969922,1709307048978,-500.0,0.00022136,2]
[315969923,1709307048989,-500.0,0.00022136,2]
[315969924,1709307048998,-500.0,0.00022136,2]
[315969925,1709307049008,-500.0,0.00022136,2]
[315969926,1709307049017,-500.0,0.00022136,2]
[315969927,1709307049027,-500.0,0.00022136,2]
[315969928,1709307049036,-500.0,0.00022136,2]
[315969929,1709307049045,-500.0,0.00022136,2]
[315969930,1709307049054,-500.0,0.00022136,2]
[315969931,1709307049064,-500.0,0.00022136,2]
[315969932,1709307049073,-500.0,0.00022136,2]
[315969933,1709307049082,-500.0,0.00022136,2]
[315969934,1709307049091,-500.0,0.00022136,2]
[315969935,1709307049101,-500.0,0.00022136,2]
[315969936,1709307049110,-500.0,0.00022136,2]
[315969937,1709307049119,-500.0,0.00022136,2]
[315969938,1709307049128,-500.0,0.00022136,2]
[315969939,1709307049137,-500.0,0.00022136,2]
[315969940,1709307049146,-500.0,0.00022136,2]
[315969941,1709307049155,-500.0,0.00022136,2]
[315969942,1709307049164,-500.0,0.00022136,2]
[315969943,1709307049173,-500.0,0.00022136,2]
[315969944,1709307049183,-500.0,0.00022136,2]
[315969945,1709307049192,-500.0,0.00022136,2]
[315969946,1709307049201,-500.0,0.00022136,2]
[315969947,1709307049211,-500.0,0.00022136,2]
[315969948,1709307049220,-500.0,0.00022136,2]
[315969949,1709307049230,-641.48,0.00022136,2]
[315969950,1709307049240,-500.0,0.00022136,2]
[315969951,1709307049250,-500.0,0.00022136,2]
[315969952,1709307049259,-159.41,0.00022136,2]
[315969953,1709307049269,-733.34,0.00022136,2]
[315969954,1709307049278,-500.0,0.00022136,2]
[315969955,1709307049287,-500.0,0.00022136,2]
[315969956,1709307049296,-500.0,0.00022136,2]
[315969957,1709307049305,-500.0,0.00022136,2]
[315969958,1709307049315,-708.41,0.00022136,2]
[315969959,1709307049325,-500.0,0.00022136,2]
[315969960,1709307049334,-500.0,0.00022136,2]
[315969961,1709307049343,-500.0,0.00022136,2]
[315969962,1709307049352,-681.36,0.00022136,2]
[315969963,1709307049361,-500.0,0.00022136,2]
[315969964,1709307049370,-500.0,0.00022136,2]
[315969965,1709307049380,-500.0,0.00022136,2]
[315969966,1709307049389,-500.0,0.00022136,2]
[315969967,1709307049397,-500.0,0.00022136,2]
[315969968,1709307049407,-514.15,0.00022136,2]
[315969969,1709307049416,-500.0,0.00022136,2]
[315969970,1709307049425,-500.0,0.00022136,2]
[315969971,1709307049435,-500.0,0.00022136,2]
[315969972,1709307049445,-500.0,0.00022136,2]
[315969973,1709307049454,-372.82747303,0.00022136,2]
[315969974,1709307049463,-500.0,0.00022136,2]
[315969975,1709307049473,-500.0,0.00022136,2]
[315969976,1709307049483,-780.87,0.00022136,2]
[315969977,1709307049494,-500.0,0.00022136,2]
[315969978,1709307049506,-500.0,0.00022136,2]
[315969979,1709307049515,-619.92,0.00022136,2]
[315969980,1709307049525,-374.19363876,0.00022136,2]
[315969981,1709307049536,-513.88,0.00022136,2]
[315969982,1709307049545,-500.0,0.00022136,2]
[315969983,1709307049555,-1001.49,0.00022136,2]
[315969984,1709307049564,-500.0,0.00022136,2]
[315969985,1709307049573,-302.36143509,0.00022136,2]
[315969986,1709307049906,-197.63856491,0.00022136,2]
[315969987,1709307049916,-669.59,0.00022136,2]
[315969988,1709307049925,-500.0,0.00022136,2]
[315969989,1709307049935,-500.0,0.00022136,2]
[315969990,1709307049945,-500.0,0.00022136,2]
[315969991,1709307049954,-849.76,0.00022136,2]
[315969992,1709307049964,-500.0,0.00022136,2]
[315969993,1709307049973,-500.0,0.00022136,2]
[315969994,1709307049982,-500.0,0.00022136,2]
[315969995,1709307049994,-500.0,0.00022136,2]
[315969996,1709307050003,-593.47,0.00022136,2]
[315969997,1709307050013,-500.0,0.00022136,2]
[315969998,1709307050022,-500.0,0.00022136,2]
[315969999,1709307050032,-587.57,0.00022136,2]
[315970000,1709307050042,-693.02,0.00022136,2]
[315970001,1709307050052,-500.0,0.00022136,2]
[315970002,1709307050062,-500.0,0.00022136,2]
[315970003,1709307050071,-3436.84,0.00022136,2]
[315970004,1709307050081,-512.71,0.00022136,2]
[315970005,1709307050090,-500.0,0.00022136,2]
[315970006,1709307050099,-500.0,0.00022136,2]
[315970007,1709307050109,-500.0,0.00022136,2]
[315970008,1709307050119,-500.0,0.00022136,2]
[315970009,1709307050128,-1841.21,0.00022136,2]
[315970010,1709307050138,-500.0,0.00022136,2]
[315970011,1709307050147,-661.84,0.00022136,2]
[315970012,1709307050157,-500.0,0.00022136,2]
[315970013,1709307050172,-4114.03,0.00022136,2]
[315970014,1709307050182,-500.0,0.00022136,2]
[315970015,1709307050192,-500.0,0.00022136,2]
[315970016,1709307050201,-500.0,0.00022136,2]
[315970017,1709307050212,-3002.58,0.00022136,2]
[315970018,1709307050222,-500.0,0.00022136,2]
[315970019,1709307050238,-500.0,0.00022136,2]
[315970020,1709307050249,-500.0,0.00022136,2]
[315970021,1709307050259,-500.0,0.00022136,2]
[315970022,1709307050269,-500.0,0.00022136,2]
[315970023,1709307050279,-974.29,0.00022136,2]
[315970024,1709307050289,-2153.01,0.00022136,2]
[315970025,1709307050299,-545.38,0.00022136,2]
[315970026,1709307050309,-570.29,0.00022136,2]
[315970027,1709307050319,-759.19,0.00022136,2]
[315970028,1709307050329,-500.0,0.00022136,2]
[315970029,1709307050339,-500.0,0.00022136,2]
[315970030,1709307050348,-1340.74,0.00022136,2]
[315970031,1709307050357,-500.0,0.00022136,2]
[315970032,1709307050367,-3434.32,0.00022136,2]
[315970033,1709307050376,-500.0,0.00022136,2]
[315970034,1709307050385,-604.73,0.00022136,2]
[315970035,1709307050394,-500.0,0.00022136,2]
[315970036,1709307050404,-3111.84,0.00022136,2]
[315970037,1709307050413,-1366.55,0.00022136,2]
[315970038,1709307050423,-500.0,0.00022136,2]
[315970039,1709307050432,-500.0,0.00022136,2]
[315970040,1709307050441,-897.17,0.00022136,2]
[315970041,1709307050451,-1864.62940143,0.00022136,2]
[315970042,1709307050803,-510.49059857,0.00022136,2]
[315970043,1709307050815,-500.0,0.00022136,2]
[315970044,1709307050824,-12991.98,0.00022136,2]
[315970045,1709307050834,-500.0,0.00022136,2]
[315970046,1709307050843,-541.73,0.00022136,2]
[315970047,1709307050853,-500.0,0.00022136,2]
[315970048,1709307050863,-500.0,0.00022136,2]
[315970049,1709307050873,-1092.99,0.00022136,2]
[315970050,1709307050882,-614.69,0.00022136,2]
[315970051,1709307050892,-732.01,0.00022136,2]
[315970052,1709307050902,-731.06,0.00022136,2]
[315970053,1709307050912,-819.26,0.00022136,2]
[315970054,1709307050921,-500.0,0.00022136,2]
[315970055,1709307050931,-500.0,0.00022136,2]
[315970056,1709307050940,-571.90593408,0.00022136,2]
[315970057,1709307050950,-658.19,0.00022136,2]
[315970058,1709307050960,-500.0,0.00022136,2]
[315970059,1709307050970,-500.0,0.00022136,2]
[315970060,1709307050979,-691.87,0.00022136,2]
[315970061,1709307050990,-638.67,0.00022136,2]
[315970062,1709307051000,-1111.59,0.00022136,2]
[315970063,1709307051009,-3372.23,0.00022136,2]
[315970064,1709307051019,-815.45,0.00022136,2]
[315970065,1709307051028,-500.0,0.00022136,2]
[315970066,1709307051038,-500.0,0.00022136,2]
[315970067,1709307051047,-964.26,0.00022136,2]
[315970068,1709307051056,-793.53,0.00022136,2]
[315970069,1709307051066,-500.0,0.00022136,2]
[315970070,1709307051075,-516.84,0.00022136,2]
[315970071,1709307051085,-751.41,0.00022136,2]
[315970072,1709307051094,-500.0,0.00022136,2]
[315970073,1709307051104,-500.0,0.00022136,2]
[315970074,1709307051114,-500.0,0.00022136,2]
[315970075,1709307051123,-500.0,0.00022136,2]
[315970076,1709307051132,-611.43,0.00022136,2]
[315970077,1709307051141,-500.0,0.00022136,2]
[315970078,1709307051151,-500.0,0.00022136,2]
[315970079,1709307051160,-406.88487386,0.00022136,2]
[315970080,1709307051170,-500.0,0.00022136,2]
[315970081,1709307051179,-552.7,0.00022136,2]
[315970082,1709307051188,-500.0,0.00022136,2]
[315970083,1709307051199,-698.82,0.00022136,2]
[315970084,1709307051209,-583.21,0.00022136,2]
[315970085,1709307051219,-1028.87,0.00022136,2]
[315970086,1709307051229,-500.0,0.00022136,2]
[315970087,1709307051240,-573.69,0.00022136,2]
[315970088,1709307051249,-500.0,0.00022136,2]
[315970089,1709307051259,-500.0,0.00022136,2]
[315970090,1709307051268,-500.0,0.00022136,2]
[315970091,1709307051278,-500.0,0.00022136,2]
[315970092,1709307051287,-500.0,0.00022136,2]
[315970093,1709307051297,-787.69,0.00022136,2]
[315970094,1709307051307,-918.67,0.00022136,2]
[315970095,1709307051316,-500.0,0.00022136,2]
[315970096,1709307051326,-691.1,0.00022136,2]
[315970097,1709307051336,-3244.85,0.00022136,2]
[315970098,1709307051345,-536.66,0.00022136,2]
[315970099,1709307051354,-1967.56,0.00022136,2]
[315970100,1709307051364,-670.06,0.00022136,2]
[315970101,1709307051374,-500.0,0.00022136,2]
[315970102,1709307051383,-505.35,0.00022136,2]
[315970103,1709307051392,-500.0,0.00022136,2]
[315970104,1709307051402,-500.0,0.00022136,2]
[315970105,1709307051412,-509.48,0.00022136,2]
[315970106,1709307051421,-685.16,0.00022136,2]
[315970107,1709307051430,-649.97,0.00022136,2]
[315970108,1709307051439,-500.0,0.00022136,2]
[315970109,1709307051449,-982.63,0.00022136,2]
[315970110,1709307051459,-3216.78,0.00022136,2]
[315970111,1709307051468,-500.0,0.00022136,2]
[315970112,1709307051478,-500.0,0.00022136,2]
[315970113,1709307051488,-500.0,0.00022136,2]
[315970114,1709307051499,-849.21,0.00022136,2]
[315970115,1709307051509,-500.0,0.00022136,2]
[315970116,1709307051518,-972.94,0.00022136,2]
[315970117,1709307051528,-500.0,0.00022136,2]
[315970118,1709307051537,-500.0,0.00022136,2]
[315970119,1709307051548,-3340.41,0.00022136,2]
[315970120,1709307051560,-500.0,0.00022136,2]
[315970121,1709307051569,-3128.28,0.00022136,2]
[315970122,1709307051578,-500.0,0.00022136,2]
[315970123,1709307051588,-500.0,0.00022136,2]
[315970124,1709307051598,-500.0,0.00022136,2]
[315970125,1709307051607,-1319.78,0.00022136,2]
[315970126,1709307051617,-3858.03,0.00022136,2]
[315970127,1709307051626,-500.0,0.00022136,2]
[315970128,1709307051636,-500.0,0.00022136,2]
[315970129,1709307051645,-949.85,0.00022136,2]
[315970130,1709307051655,-500.0,0.00022136,2]
[315970131,1709307051665,-500.0,0.00022136,2]
[315970132,1709307051675,-525.34,0.00022136,2]
[315970133,1709307051688,-500.0,0.00022136,2]
[315970134,1709307051698,-500.0,0.00022136,2]
[315970135,1709307051707,-4141.17,0.00022136,2]
[315970136,1709307051717,-763.27,0.00022136,2]
[315970137,1709307051727,-2899.72,0.00022136,2]
[315970138,1709307051737,-936.13,0.00022136,2]
[315970139,1709307051747,-1154.5,0.00022136,2]
[315970140,1709307051757,-676.85,0.00022136,2]
[315970141,1709307051766,-500.0,0.00022136,2]
[315970142,1709307051776,-500.0,0.00022136,2]
[315970143,1709307051786,-988.63,0.00022136,2]
[315970144,1709307051794,-500.0,0.00022136,2]
[315970145,1709307051804,-426.65555089,0.00022136,2]
[315970146,1709307051813,-2096.13,0.00022136,2]
[315970147,1709307051823,-788.2,0.00022136,2]
[315970148,1709307051832,-500.0,0.00022136,2]
[315970149,1709307051842,-2568.42,0.00022136,2]
[315970150,1709307051851,-500.0,0.00022136,2]
[315970151,1709307051861,-500.0,0.00022136,2]
[315970152,1709307051871,-3085.65,0.00022136,2]
[315970153,1709307051880,-784.04,0.00022136,2]
[315970154,1709307051890,-974.28,0.00022136,2]
[315970155,1709307051899,-6025.09083848,0.00022146,2]
[315970156,1709307051925,-498.1733841,0.00022146,2]
[315970157,1709307051937,-2897.526098,0.00022146,2]
[315970158,1709307051948,-891.39151213,0.00022146,2]
[315970159,1709307052391,-500.0,0.00021917,2]
[315970160,1709307052400,-500.0,0.00021917,2]
[315970161,1709307052410,-234687.81816729,0.00022146,2]
[315970162,1709307052419,-157.51,0.00022149,2]
[315970163,1709307052428,-200.39,0.00022149,2]
[315970164,1709307052437,-51073.13664383,0.00022161,2]
[315970165,1709307052446,-6998.04691962,0.00022162,2]
[315970166,1709307052455,-84623.14719453,0.00022162,2]
[315970167,1709307052464,-9124.93437904,0.00022162,2]
[315970168,1709307052473,-876.12,0.00022192,2]
[315970169,1709307052483,-423.04,0.00022192,2]
[315970170,1709307052494,-690.12,0.00022192,2]
[315970171,1709307052503,-178.0,0.00022196,2]
[315970172,1709307052512,-1587.0,0.000222,2]
[315970173,1709307052522,-500.0,0.00022218,2]
[315970174,1709307052531,-434.01567268,0.00022218,2]
[315970175,1709307052540,-337.3010067,0.00022218,2]
[315970176,1709307052550,-564.96,0.00022218,2]
[315970177,1709307052560,-500.0,0.00022218,2]
[315970178,1709307052569,-500.0,0.00022218,2]
[315970179,1709307052578,-500.0,0.00022218,2]
[315970180,1709307052588,-500.0,0.00022218,2]
[315970181,1709307052597,-500.0,0.00022218,2]
[315970182,1709307052608,-500.0,0.00022218,2]
[315970183,1709307052617,-500.0,0.00022218,2]
[315970184,1709307052627,-500.0,0.00022218,2]
[315970185,1709307052636,-500.0,0.00022218,2]
[315970186,1709307052645,-500.0,0.00022218,2]
[315970187,1709307052655,-500.0,0.00022218,2]
[315970188,1709307052664,-500.0,0.00022218,2]
[315970189,1709307052673,-500.0,0.00022218,2]
[315970190,1709307052684,-500.0,0.00022218,2]
[315970191,1709307052693,-525.53774783,0.00022218,2]
[315970192,1709307052707,-500.0,0.00022218,2]
[315970193,1709307052717,-528.00084137,0.00022218,2]
[315970194,1709307052727,-500.0,0.00022218,2]
[315970195,1709307052740,-500.0,0.00022218,2]
[315970196,1709307052751,-500.0,0.00022218,2]
[315970197,1709307052762,-500.0,0.00022218,2]
[315970198,1709307052771,-500.0,0.00022218,2]
[315970199,1709307052781,-500.0,0.00022218,2]
[315970200,1709307052791,-500.0,0.00022218,2]
[315970201,1709307052801,-500.0,0.00022218,2]
[315970202,1709307052810,-378.29124846,0.00022218,2]
[315970203,1709307052820,-500.0,0.00022218,2]
[315970204,1709307052832,-500.0,0.00022218,2]
[315970205,1709307052842,-500.0,0.00022218,2]
[315970206,1709307052851,-500.0,0.00022218,2]
[315970207,1709307052861,-500.0,0.00022218,2]
[315970208,1709307052870,-500.0,0.00022218,2]
[315970209,1709307052880,-500.0,0.00022218,2]
[315970210,1709307052889,-500.0,0.00022218,2]
[315970211,1709307052898,-500.0,0.00022218,2]
[315970212,1709307052908,-376.56845426,0.00022218,2]
[315970213,1709307052917,-440.94713552,0.00022218,2]